bitfinex-derivatives/quotes_ETHF0:USTF0_20250213
["timestamp","ask_amount","ask_price","bid_price","bid_amount"]
[1739467315660,0.75991,2631.5,2631.4,1.33983]
[1739467316653,0.7599,2631.6,2631.5,0.75987]
[1739467316848,1.1694,2632.1,2631.5,3.40946339]
[1739467317060,0.75983,2631.9,2631.8,4.16926339]
[1739467317360,0.75983,2631.9,2631.8,4.16928339]
[1739467317561,0.75983,2631.9,2631.8,3.40946339]
[1739467317762,0.75983,2631.9,2631.8,4.16928339]
[1739467318753,0.75983,2631.9,2631.8,3.40946339]
[1739467319256,0.75983,2631.9,2631.8,4.16928339]
[1739467320255,0.75983,2631.9,2631.8,3.40946339]
[1739467320756,0.75991,2631.6,2631.5,3.40946339]
[1739467321062,0.75991,2631.6,2631.5,4.16937339]
[1739467321263,0.75986,2631.8,2631.7,0.75982]
[1739467321458,0.75988,2631.6,2631.5,3.40946339]
[1739467321764,0.75991,2631.5,2631.4,1.33982]
[1739467321953,3.2078,2631.9,2631.5,1.89977]
[1739467322165,0.75982,2631.8,2631.7,4.16928339]
[1739467322660,0.75982,2631.8,2631.7,4.16931339]
[1739467323165,0.75979,2632.0,2631.9,0.75976]
[1739467323367,0.75979,2631.9,2631.8,0.592]
[1739467323566,0.75982,2631.8,2631.7,3.40946339]
[1739467323868,0.7599,2631.6,2631.5,0.75987]
[1739467324366,3.2078,2631.9,2631.4,3.98936339]
[1739467324562,3.2078,2631.6,2631.3,0.592]
[1739467324867,1.89985,2631.4,2631.0,0.00569638]
[1739467325062,0.76002,2631.1,2631.0,0.76574638]
[1739467325869,0.76002,2631.1,2631.0,0.00569638]
[1739467326266,3.4946,2631.5,2631.0,0.00569638]
[1739467326463,0.75993,2631.4,2631.3,0.75995]
[1739467326658,0.75994,2631.4,2631.3,0.75994]
[1739467326968,0.75992,2631.5,2631.4,0.75991]
[1739467327166,3.2078,2631.6,2631.3,1.1417]
[1739467327368,0.75993,2631.4,2631.3,1.90164]
[1739467327562,0.75993,2631.4,2631.3,1.1417]
[1739467327767,0.75992,2631.5,2631.4,0.75991]
[1739467328165,0.75993,2631.4,2631.3,1.1417]
[1739467328360,1.89977,2631.5,2631.0,0.00569638]
[1739467328668,0.76002,2631.1,2631.0,0.00569638]
[1739467329567,0.76002,2631.1,2631.0,0.76574638]
[1739467329972,0.76002,2631.1,2631.0,0.00569638]
[1739467332673,0.76025,2630.3,2630.2,4.3826]
[1739467333164,0.76021,2630.5,2630.2,4.3826]
[1739467333359,0.76021,2630.5,2630.4,0.76022]
[1739467333558,0.76021,2630.5,2630.2,4.3826]
[1739467333559,3.2078,2630.7,2630.2,4.3826]
[1739467333966,0.76023,2630.4,2630.2,4.3826]
[1739467334176,3.21349638,2630.7,2630.2,4.3826]
[1739467334365,0.76024,2630.4,2630.3,0.76025]
[1739467334670,0.76025,2630.3,2630.2,4.3826]
[1739467335065,0.76025,2630.3,2630.2,5.14288]
[1739467335374,0.76025,2630.3,2630.2,4.3826]
[1739467335673,0.76025,2630.3,2630.2,3.8121]
[1739467335965,0.76023,2630.4,2630.3,0.76025]
[1739467336171,0.76021,2630.5,2630.4,0.7602]
[1739467336359,0.00569638,2630.7,2630.6,0.76017]
[1739467336563,0.76017,2630.6,2630.3,4.00856339]
[1739467336767,0.00569638,2630.7,2630.3,4.00856339]
[1739467337165,0.76017,2630.6,2630.5,0.76017]
[1739467337371,0.00569638,2630.7,2630.3,4.00856339]
[1739467337372,0.76584638,2630.7,2630.3,4.00856339]
[1739467337567,0.00569638,2630.7,2630.3,4.00856339]
[1739467337772,0.76019,2630.5,2630.4,0.7602]
[1739467338167,0.76019,2630.5,2630.1,0.5669]
[1739467338168,0.76028,2630.2,2630.1,0.76031]
[1739467338673,0.76585638,2630.7,2630.0,3.40946339]
[1739467338874,0.76585638,2630.7,2630.6,0.76017]
[1739467339072,0.00569638,2630.7,2630.6,0.76017]
[1739467339272,6.38e-06,2630.7,2630.6,11.94763339]
[1739467339771,3.2078,2632.2,2630.6,75.87425313]
[1739467339961,0.53260854,2631.8,2631.7,4.16931339]
[1739467340164,3.2078,2632.2,2631.7,3.40946339]
[1739467340666,0.75982,2631.8,2631.6,1.7034]
[1739467340965,0.7598,2631.9,2631.7,0.76553638]
[1739467341170,0.75982,2631.8,2631.7,0.00569638]
[1739467341972,3.2078,2631.9,2631.7,0.00569638]
[1739467342172,0.75982,2631.8,2631.7,0.00569638]
[1739467342378,3.96761,2631.9,2631.7,0.00569638]
[1739467342675,0.75982,2631.8,2631.7,0.00569638]
[1739467342875,3.2078,2631.9,2631.7,0.00569638]
[1739467343574,0.75978,2632.0,2631.7,0.00569638]
[1739467343770,0.75978,2632.0,2631.8,0.75982]
[1739467343971,3.21349638,2632.2,2631.7,3.41515977]
[1739467344276,3.21349638,2632.2,2631.7,0.00569638]
[1739467344475,0.75982,2631.8,2631.7,0.00569638]
[1739467345069,3.21349638,2632.2,2631.7,0.00569638]
[1739467345579,0.75982,2631.8,2631.7,0.00569638]
[1739467347173,0.75982,2631.8,2631.7,0.76554638]
[1739467347677,0.75982,2631.8,2631.7,0.00569638]
[1739467348072,3.96759,2631.9,2631.7,0.00569638]
[1739467348375,3.2078,2631.9,2631.8,0.75982]
[1739467348680,3.2078,2631.9,2631.7,3.41515977]
[1739467349183,3.96761,2631.9,2631.8,0.75982]
[1739467349377,0.75982,2631.8,2631.7,0.00569638]
[1739467349881,3.21349638,2632.2,2631.7,3.41515977]
[1739467350084,0.75976,2632.1,2632.0,0.75976]
[1739467350475,0.75976,2632.1,2631.7,0.00569638]
[1739467350476,0.75982,2631.8,2631.7,0.00569638]
[1739467350779,0.7598,2631.9,2631.8,0.75979]
[1739467351178,0.75982,2631.8,2631.7,0.76551638]
[1739467351384,0.75982,2631.8,2631.7,0.00569638]
[1739467352180,3.96761,2631.9,2631.8,0.7598]
[1739467352582,0.75982,2631.8,2631.7,0.76551638]
[1739467352781,0.75982,2631.8,2631.7,0.00569638]
[1739467352983,3.96761,2631.9,2631.8,0.75982]
[1739467353186,3.2078,2631.9,2631.8,0.75982]
[1739467353480,3.96759,2631.9,2631.8,0.75982]
[1739467354176,3.96759,2631.9,2631.7,0.00569638]
[1739467354381,0.75982,2631.8,2631.7,0.76552638]
[1739467354685,0.75982,2631.8,2631.7,0.00569638]
[1739467355185,0.75982,2631.8,2631.7,0.76554638]
[1739467355485,0.75982,2631.8,2631.7,0.00569638]
[1739467355882,1.32622,2631.8,2631.7,0.00569638]
[1739467356182,1.39233224,2631.8,2631.7,0.00569638]
[1739467356382,1.32622,2631.8,2631.7,0.00569638]
[1739467356574,0.75999,2631.2,2631.1,0.5688]
[1739467356780,0.75999,2631.2,2631.1,1.32882]
[1739467357076,3.96775,2631.4,2631.3,0.75996]
[1739467357280,3.8037,2631.7,2631.1,2.46885]
[1739467357480,0.75992,2631.6,2631.5,0.75989]
[1739467357680,0.75988,2631.7,2631.6,0.75988]
[1739467357887,0.75982,2631.9,2631.8,0.7598]
[1739467358980,3.2078,2632.0,2631.6,0.6028]
[1739467359274,0.75985,2631.7,2631.6,0.6028]
[1739467359774,3.7633,2632.0,2631.6,0.6028]
[1739467359973,0.75984,2631.8,2631.7,0.75983]
[1739467360183,3.96759,2632.0,2631.9,0.75979]
[1739467360374,3.2078,2632.0,2631.9,0.75979]
[1739467360575,0.75981,2631.9,2631.8,0.75979]
[1739467360785,3.2078,2632.0,2631.6,0.6028]
[1739467361179,0.75983,2631.8,2631.7,0.75982]
[1739467361784,5.10724,2632.0,2631.6,0.6028]
[1739467361980,3.2078,2632.0,2631.6,0.6028]
[1739467362481,0.75984,2631.8,2631.6,0.6028]
[1739467362687,0.75985,2631.7,2631.6,1.36264]
[1739467363188,3.2078,2632.0,2631.6,0.6028]
[1739467363492,0.00569638,2632.2,2631.4,5.18546339]
[1739467363493,0.75993,2631.5,2631.4,0.75991]
[1739467363684,3.2078,2631.7,2631.3,2.8818]
[1739467363880,0.75991,2631.6,2631.5,0.75989]
[1739467364387,0.75993,2631.4,2631.3,2.8818]
[1739467364582,0.75993,2631.4,2631.3,3.64176]
[1739467364782,3.2078,2631.7,2631.3,2.8818]
[1739467365285,1.34113,2631.8,2631.7,0.75985]
[1739467365488,0.5813,2631.8,2631.3,6.0896]
[1739467365678,0.5813,2631.8,2631.3,2.8818]
[1739467365883,0.75993,2631.4,2631.3,3.64175]
[1739467366887,3.2078,2631.7,2631.3,2.8818]
[1739467367090,0.75993,2631.5,2631.4,0.7599]
[1739467367291,1.34113,2631.8,2631.7,0.75985]
[1739467367583,0.75983,2631.8,2631.7,0.75985]
[1739467367788,3.2078,2632.0,2631.5,0.75987]
[1739467367789,0.7599,2631.6,2631.5,0.75987]
[1739467367989,0.75993,2631.4,2631.3,3.64174]
[1739467368386,0.75993,2631.4,2631.3,1.86574]
[1739467368985,0.75992,2631.6,2631.5,0.75988]
[1739467369289,1.7493,2632.1,2631.4,6.61726339]
[1739467369290,4.9571,2632.1,2631.4,6.61726339]
[1739467369489,0.75991,2631.5,2631.4,0.75991]
[1739467370884,3.2078,2631.8,2631.3,1.1058]
[1739467371084,0.75993,2631.5,2631.4,0.75988]
[1739467371584,4.9571,2632.1,2631.4,3.40946339]
[1739467371886,3.7749,2632.1,2631.5,1.776]
[1739467372089,0.75988,2631.7,2631.6,0.75985]
[1739467372291,3.7749,2632.1,2631.6,1.8997]
[1739467372586,0.75985,2631.8,2631.7,0.75982]
[1739467373488,0.75985,2631.7,2631.6,1.30426]
[1739467373789,0.75984,2631.8,2631.7,0.75981]
[1739467374882,0.75981,2631.9,2631.8,0.75978]
[1739467376489,1.89944,2632.0,2631.6,0.5444]
[1739467376791,0.75985,2631.7,2631.6,1.30425]
[1739467377288,0.75985,2631.7,2631.6,0.5444]
[1739467377888,0.75985,2631.7,2631.6,0.75988]
[1739467378597,0.75979,2631.9,2631.8,0.75977]
[1739467379094,3.7749,2632.1,2631.5,2.3219]
[1739467379292,0.75982,2631.9,2631.8,0.75978]
[1739467379491,3.7749,2632.1,2631.6,1.8997]
[1739467379694,0.75979,2632.0,2631.9,0.75976]
[1739467380487,3.2078,2632.1,2631.9,0.75976]
[1739467380689,0.75979,2632.0,2631.9,0.75976]
[1739467381091,0.75979,2631.9,2631.8,1.88389]
[1739467381292,0.75979,2631.9,2631.8,1.1241]
[1739467381894,0.75979,2631.9,2631.8,1.88392]
[1739467382601,0.75979,2632.0,2631.9,0.75976]
[1739467385299,0.75979,2631.9,2631.8,1.8839]
[1739467385502,3.2078,2632.1,2631.8,1.1241]
[1739467385804,0.76542638,2632.2,2632.1,0.75973]
[1739467386296,0.00569638,2632.2,2632.1,0.75973]
[1739467386695,0.00569638,2632.2,2632.1,1.36153]
[1739467386901,0.76539638,2632.2,2632.1,1.36153]
[1739467387295,0.75973,2632.1,2632.0,2.53474]
[1739467387800,0.75979,2631.9,2631.8,1.1241]
[1739467388000,0.75976,2632.1,2632.0,0.75973]
[1739467389102,3.97322638,2632.2,2632.1,0.75973]
[1739467389502,0.75977,2632.1,2632.0,0.75974]
[1739467390500,0.75977,2632.1,2631.8,3.02364]
[1739467390501,3.21349638,2632.2,2631.8,1.1241]
[1739467390703,0.75979,2632.0,2631.9,0.75977]
[1739467392399,0.75975,2632.1,2632.0,0.75973]
[1739467393100,0.75979,2631.9,2631.8,1.1241]
[1739467393398,1.89949,2631.9,2631.5,0.5798]
[1739467393606,0.75988,2631.6,2631.5,1.33968]
[1739467394101,0.75982,2631.9,2631.8,0.75979]
[1739467395002,1.0927597,2632.1,2631.5,0.5798]
[1739467395198,0.75978,2632.0,2631.9,0.75976]
[1739467395604,0.75978,2632.0,2631.9,41.55976]
[1739467395905,3.21349638,2632.2,2631.9,40.8]
[1739467396095,3.97321638,2632.2,2632.1,0.75973]
[1739467396903,3.21349638,2632.2,2632.1,0.75973]
[1739467397207,3.21349638,2632.2,2632.1,41.55973]
[1739467397406,3.21349638,2632.2,2632.1,42.12323]
[1739467397907,3.97319638,2632.2,2632.1,1.32323]
[1739467398202,0.00569638,2632.2,2632.1,1.32323]
[1739467398501,0.75967,2632.4,2632.3,0.75966]
[1739467398699,0.75969,2632.3,2632.2,0.75968]
[1739467398901,0.75967,2632.4,2632.3,0.75966]
[1739467399302,0.7597,2632.3,2632.2,0.7597]
[1739467399495,5.10685,2632.5,2632.0,1.1079]
[1739467399705,0.75973,2632.1,2632.0,1.11359638]
[1739467400708,3.96752,2632.2,2632.1,0.75973]
[1739467401208,3.96752,2632.2,2632.0,1.11359638]
[1739467401209,0.75973,2632.1,2632.0,1.87334638]
[1739467401710,3.96753,2632.2,2632.1,0.75973]
[1739467401904,0.75973,2632.1,2632.0,1.87332638]
[1739467402410,0.75972,2632.2,2632.1,0.75971]
[1739467402605,0.75973,2632.1,2632.0,1.87334638]
[1739467402999,0.75973,2632.1,2632.0,0.00569638]
[1739467403405,1.89973,2632.1,2632.0,0.00569638]
[1739467403806,2.4343503,2632.1,2632.0,0.00569638]
[1739467404507,1.7407243,2632.1,2631.4,2.936]
[1739467404714,0.75991,2631.5,2631.4,43.736]
[1739467405010,0.75991,2631.5,2631.4,41.55993]
[1739467405214,3.2078,2631.6,2631.5,0.75991]
[1739467405412,3.2078,2631.6,2631.2,1.1339]
[1739467405804,0.75996,2631.3,2631.2,1.89388]
[1739467406107,0.591,2631.5,2631.2,1.1339]
[1739467406314,1.35093,2631.5,2631.4,0.75993]
[1739467406608,3.2078,2631.6,2631.2,1.1339]
[1739467407009,0.75996,2631.4,2631.3,0.75995]
[1739467407308,0.76006,2631.0,2630.9,0.76008]
[1739467407511,0.76006,2631.0,2630.9,1.30588]
[1739467407718,0.76008,2630.9,2630.8,1.34009]
[1739467408007,0.76008,2630.9,2630.8,0.58]
[1739467408210,0.76008,2630.9,2630.8,1.34011]
[1739467408510,0.00569638,2631.1,2631.0,0.76005]
[1739467409013,0.00569638,2631.1,2630.8,0.58]
[1739467409313,0.76008,2631.0,2630.9,0.76007]
[1739467409508,0.00569638,2631.1,2630.8,0.58]
[1739467409714,0.00569638,2631.1,2631.0,0.76005]
[1739467410113,0.00569638,2631.1,2631.0,4.16951339]
[1739467410311,3.2078,2631.6,2631.0,7.37731339]
[1739467410511,3.2078,2631.6,2631.5,0.75991]
[1739467410708,3.2078,2631.6,2631.4,3.40946339]
[1739467410913,3.2078,2631.6,2631.5,0.75991]
[1739467411116,3.2078,2632.0,2631.4,3.40946339]
[1739467411413,3.7745,2632.3,2631.7,3.40946339]
[1739467411715,0.76547638,2632.0,2631.9,0.75979]
[1739467411908,0.00569638,2632.0,2631.9,0.75979]
[1739467412513,0.00569638,2632.0,2631.8,0.5451]
[1739467412714,0.75979,2631.9,2631.8,0.5451]
[1739467412918,0.75979,2631.9,2631.8,1.30492]
[1739467414221,3.97327638,2632.0,2631.9,0.75979]
[1739467414614,0.00569638,2632.0,2631.9,0.75979]
[1739467416017,0.00569638,2632.0,2631.9,3.96759]
[1739467421418,0.76545638,2632.0,2631.9,2.53379]
[1739467421919,0.76545638,2632.0,2631.9,1.774]
[1739467422122,0.00569638,2632.0,2631.8,0.5451]
[1739467422417,0.75979,2631.9,2631.8,0.5451]
[1739467422617,0.75979,2631.9,2631.8,1.30492]
[1739467424920,0.00569638,2632.0,2631.9,0.75979]
[1739467425323,0.00569638,2632.0,2631.8,0.5451]
[1739467425629,0.75982,2631.8,2631.7,4.16929339]
[1739467425831,0.75982,2631.8,2631.7,4.76719339]
[1739467426023,0.00569638,2632.0,2631.7,4.00736339]
[1739467426228,0.00569638,2632.0,2631.9,0.75979]
[1739467427125,0.00569638,2632.0,2631.9,2.53379]
[1739467428630,0.76545638,2632.0,2631.9,2.53379]
[1739467428826,0.00569638,2632.0,2631.9,2.53379]
[1739467430634,0.76545638,2632.0,2631.9,2.53379]
[1739467431028,0.00569638,2632.0,2631.9,2.53379]
[1739467433133,0.76545638,2632.0,2631.9,2.53379]
[1739467434031,0.00569638,2632.0,2631.9,2.53379]
[1739467436739,0.00569638,2632.0,2631.9,5.74159]
[1739467437439,0.00569638,2632.0,2631.9,46.54159]
[1739467438246,0.76545638,2632.0,2631.9,43.33379]
[1739467438446,0.00569638,2632.0,2631.9,43.33379]
[1739467439048,0.00569638,2632.0,2631.9,2.53379]
[1739467441541,0.00569638,2632.0,2631.9,5.74159]
[1739467442147,0.00569638,2632.0,2631.9,6.31128946]
[1739467442342,0.00569638,2632.0,2631.9,5.74159]
[1739467443136,0.00569638,2632.0,2631.9,6.31152453]
[1739467443847,0.00569638,2632.0,2631.9,5.74159]
[1739467444140,0.00569638,2632.0,2631.9,2.53379]
[1739467444649,0.00569638,2632.0,2631.9,5.74159]
[1739467445041,0.00569638,2632.0,2631.9,2.53379]
[1739467445242,0.00569638,2632.0,2631.9,5.74159]
[1739467446249,0.00569638,2632.0,2631.9,2.53379]
[1739467446747,0.00569638,2632.0,2631.9,5.74159]
[1739467448650,0.00569638,2632.0,2631.9,6.31148608]
[1739467448844,0.00569638,2632.0,2631.9,5.74159]
[1739467449349,0.00569638,2632.0,2631.9,2.53179]
[1739467450649,0.00569638,2632.0,2631.9,5.73959]
[1739467451051,0.00569638,2632.0,2631.9,2.53179]
[1739467452151,0.76545638,2632.0,2631.9,2.53179]
[1739467452351,0.00569638,2632.0,2631.9,2.53179]
[1739467453056,0.00569638,2632.0,2631.9,0.75979]
[1739467453243,0.76545638,2632.0,2631.9,0.75979]
[1739467455757,0.76545638,2632.0,2631.6,0.75985]
[1739467455758,0.75988,2631.7,2631.6,0.75985]
[1739467456155,1.10703667,2631.9,2631.5,4.9798]
[1739467456363,1.86686667,2631.9,2631.8,0.75982]
[1739467456858,0.5717,2631.9,2631.8,0.75982]
[1739467460155,0.00569638,2632.0,2631.9,0.75979]
[1739467460750,0.00569638,2632.0,2631.9,3.96759]
[1739467462252,0.00569638,2632.0,2631.9,4.53687321]
[1739467463856,0.00569638,2632.0,2631.9,4.53688544]
[1739467464449,1.08279721,2632.8,2632.7,0.75956]
[1739467464450,0.53449721,2632.8,2632.7,0.75956]
[1739467464656,4.9338,2633.5,2632.7,8.95813854]
[1739467464862,3.2078,2633.5,2633.4,4.16882339]
[1739467465360,3.2078,2633.8,2633.5,0.75933]
[1739467465747,3.97275638,2633.8,2633.5,0.75933]
[1739467465953,3.21349638,2633.8,2633.5,0.75933]
[1739467466356,1.49755,2633.6,2633.4,6.32696339]
[1739467466558,0.75936,2633.4,2633.3,0.00569638]
[1739467466763,0.5476,2633.5,2633.3,0.00569638]
[1739467466959,0.73824,2633.6,2633.4,4.16880339]
[1739467467261,0.73824,2633.6,2633.5,2.53033]
[1739467467464,0.73824,2633.6,2633.5,3.67843]
[1739467468359,0.00569638,2633.8,2633.7,0.75927]
[1739467468561,0.00569638,2633.8,2633.7,7.37653339]
[1739467468760,0.00569638,2633.8,2633.7,13.37653339]
[1739467468962,0.00569638,2633.8,2633.7,7.37653339]
[1739467469361,0.00569638,2633.8,2633.7,5.93973339]
[1739467470354,0.00569638,2633.8,2633.7,9.14753339]
[1739467471362,0.00569638,2633.8,2633.7,7.37653339]
[1739467471567,0.00569638,2633.8,2633.7,9.14753339]
[1739467471957,0.00569638,2633.8,2633.7,3.40946339]
[1739467472257,0.00569638,2633.8,2633.7,5.18046339]
[1739467472463,0.00569638,2633.8,2633.7,5.93973339]
[1739467475863,3.7875,2634.5,2633.7,5.93973339]
[1739467476066,4.54656,2634.5,2634.4,3.40946339]
[1739467476763,0.75913,2634.2,2634.1,3.40946339]
[1739467477660,0.75913,2634.2,2634.1,4.16861339]
[1739467478157,0.75913,2634.2,2634.1,3.40946339]
[1739467478358,0.75913,2634.2,2634.1,4.16862339]
[1739467479264,0.75913,2634.2,2634.1,3.40946339]
[1739467479453,0.75913,2634.2,2634.1,4.16862339]
[1739467480668,0.00569638,2634.4,2634.1,3.40946339]
[1739467480863,0.75911,2634.3,2634.2,0.7591]
[1739467481058,0.00569638,2634.4,2634.1,3.40946339]
[1739467481264,0.00569638,2634.4,2634.3,0.7591]
[1739467482466,0.7591,2634.3,2634.2,1.94921]
[1739467482664,0.75913,2634.2,2634.1,4.16860339]
[1739467482863,3.96693,2634.2,2634.1,3.40946339]
[1739467483063,0.75913,2634.2,2634.1,3.40946339]
[1739467483259,1.1396,2634.3,2634.1,4.16862339]
[1739467483467,0.5498,2634.3,2634.2,0.75913]
[1739467483661,0.00569638,2634.4,2634.3,0.7591]
[1739467483862,0.00569638,2634.4,2634.3,3.9669]
[1739467484063,3.2078,2635.2,2634.3,6.61726339]
[1739467484258,1.30864,2635.2,2635.1,3.40946339]
[1739467484458,1.30864,2635.2,2635.1,4.16833339]
[1739467484666,0.5498,2635.2,2635.1,4.16833339]
[1739467484970,3.2078,2635.5,2635.3,0.75881]
[1739467485264,3.2078,2635.5,2635.1,0.00569638]
[1739467485765,0.75884,2635.2,2635.1,0.00569638]
[1739467486371,0.75884,2635.3,2635.1,0.76456638]
[1739467487171,3.2078,2635.5,2635.1,0.76456638]
[1739467487771,0.75884,2635.2,2635.1,0.00569638]
[1739467487971,3.2078,2635.5,2635.1,0.00569638]
[1739467488470,0.75882,2635.3,2635.2,0.75882]
[1739467488666,0.75882,2635.3,2635.1,0.76454638]
[1739467489074,0.75884,2635.2,2635.1,0.76456638]
[1739467489472,0.75883,2635.3,2635.1,0.76456638]
[1739467490077,0.75883,2635.3,2635.2,0.75884]
[1739467490375,0.75884,2635.3,2635.1,0.76455638]
[1739467490573,0.75884,2635.3,2635.1,0.00569638]
[1739467490773,0.75884,2635.3,2635.2,0.75884]
[1739467492077,3.2078,2635.5,2635.2,0.75884]
[1739467492275,0.75881,2635.3,2635.2,0.75884]
[1739467493375,3.2078,2635.5,2635.1,0.00569638]
[1739467493574,0.7588,2635.4,2635.3,0.7588]
[1739467495178,0.75884,2635.3,2635.2,0.75881]
[1739467495778,0.7588,2635.4,2635.3,0.75878]
[1739467496076,3.2078,2635.5,2635.2,3.40946339]
[1739467496380,0.55549638,2635.7,2635.6,0.75872]
[1739467496577,1.31418638,2635.7,2635.6,4.16818339]
[1739467496978,0.55549638,2635.7,2635.6,4.16818339]
[1739467497176,0.00569638,2635.7,2635.6,4.16818339]
[1739467497379,0.76438638,2635.7,2635.6,4.16818339]
[1739467497675,0.00569638,2635.7,2635.6,4.16818339]
[1739467498267,0.00569638,2635.7,2635.6,7.57764678]
[1739467498572,0.00569638,2635.7,2635.6,4.16818339]
[1739467499676,0.00569638,2635.7,2635.6,7.57764678]
[1739467499873,3.2078,2636.1,2635.6,13.57764678]
[1739467500077,3.99561524,2638.1,2636.0,3.40946339]
[1739467500078,3.2078,2636.5,2636.0,3.40946339]
[1739467500279,3.2078,2636.5,2636.4,3.40946339]
[1739467500280,3.96626,2636.5,2636.4,3.40946339]
[1739467501473,0.75855,2636.2,2636.1,3.40946339]
[1739467501676,3.96635,2636.2,2636.1,3.40946339]
[1739467501881,4.51695,2636.2,2636.1,3.40946339]
[1739467502580,3.7584,2636.2,2635.8,3.40946339]
[1739467502780,3.96644,2635.9,2635.8,3.40946339]
[1739467503574,3.96644,2635.9,2635.8,4.16813339]
[1739467503781,3.96644,2635.9,2635.8,3.40946339]
[1739467503983,3.96644,2635.9,2635.8,4.16813339]
[1739467504178,3.2078,2635.9,2635.8,4.16813339]
[1739467504372,3.96644,2635.9,2635.8,0.75867]
[1739467505180,0.75868,2635.8,2635.7,0.75867]
[1739467505371,3.2078,2635.9,2635.6,3.40946339]
[1739467505571,3.96646,2635.9,2635.8,0.75867]
[1739467505783,0.75869,2635.7,2635.6,3.40946339]
[1739467506077,0.75869,2635.8,2635.7,0.75867]
[1739467506274,0.75863,2636.0,2635.9,0.7586]
[1739467506474,3.7584,2636.2,2635.9,3.40946339]
[1739467506681,0.75861,2636.1,2636.0,1.33559]
[1739467506878,0.75861,2636.1,2636.0,1.91099]
[1739467507576,0.75861,2636.1,2636.0,1.1524]
[1739467508381,0.75861,2636.0,2635.9,3.40946339]
[1739467509286,1.30311,2636.0,2635.9,3.40946339]
[1739467510184,0.5445,2636.0,2635.3,3.40946339]
[1739467510489,0.75878,2635.4,2635.3,4.16827339]
[1739467510678,0.75878,2635.4,2635.3,3.40946339]
[1739467512482,0.5498,2635.5,2635.3,3.40946339]
[1739467512787,0.75878,2635.4,2635.3,4.16825339]
[1739467513474,0.75878,2635.4,2635.3,3.40946339]
[1739467514886,0.75878,2635.4,2635.3,4.16827339]
[1739467516383,0.75878,2635.4,2635.3,3.40946339]
[1739467520984,0.75884,2635.2,2635.1,0.00569638]
[1739467521191,0.75895,2634.8,2634.7,4.57936339]
[1739467521385,0.75895,2634.8,2634.7,5.33834339]
[1739467521596,0.75895,2634.8,2634.7,4.57936339]
[1739467522797,0.75895,2634.8,2634.7,4.00696339]
[1739467524713,3.2078,2634.9,2634.5,0.00569638]
[1739467524904,3.96681,2634.6,2634.5,0.00569638]
[1739467527194,11.73281,2634.6,2634.5,0.00569638]
[1739467527400,0.75913,2634.2,2634.1,3.40946339]
[1739467527590,3.96693,2634.2,2634.1,3.40946339]
[1739467527795,0.75913,2634.2,2634.1,3.40946339]
[1739467528097,0.75913,2634.2,2634.1,4.16860339]
[1739467528400,3.2078,2634.5,2634.1,3.40946339]
[1739467528592,3.96684,2634.5,2634.4,3.40946339]
[1739467529495,3.2078,2634.5,2634.4,3.40946339]
[1739467529698,3.2078,2634.5,2634.4,4.16853339]
[1739467530001,3.2078,2634.9,2634.4,3.40946339]
[1739467530197,3.2078,2634.9,2634.8,0.75895]
[1739467530590,3.96673,2634.9,2634.8,0.75895]
[1739467530900,3.2078,2634.9,2634.7,3.40946339]
[1739467531102,0.75895,2634.8,2634.7,4.16843339]
[1739467531396,3.2078,2634.9,2634.7,3.40946339]
[1739467531590,3.96675,2634.9,2634.8,0.75895]
[1739467531787,3.2078,2634.9,2634.8,0.75895]
[1739467532000,0.00569638,2635.0,2634.9,0.75893]
[1739467532694,3.2078,2635.8,2634.9,3.2078]
[1739467532894,5.30577339,2636.4,2635.6,3.40946339]
[1739467532895,0.75865,2635.9,2635.6,3.40946339]
[1739467533104,3.2078,2636.1,2635.8,0.75866]
[1739467533401,0.75861,2636.0,2635.9,3.40946339]
[1739467533790,0.7586,2636.1,2635.9,3.40946339]
[1739467533989,0.00569638,2636.2,2635.9,3.40946339]
[1739467534392,0.75861,2636.0,2635.9,3.40946339]
[1739467535195,3.2078,2636.1,2635.7,0.00569638]
[1739467535393,0.75867,2635.8,2635.7,0.00569638]
[1739467535891,3.96647,2635.8,2635.7,0.00569638]
[1739467537905,3.96647,2635.8,2635.7,0.57139638]
[1739467538800,3.96647,2635.8,2635.7,0.00569638]
[1739467539794,3.2078,2635.8,2635.7,0.00569638]
[1739467540001,3.2078,2635.8,2635.7,1.33008638]
[1739467540202,3.96647,2635.8,2635.7,1.33008638]
[1739467540407,3.2078,2635.8,2635.7,1.33008638]
[1739467541106,3.2078,2635.9,2635.8,0.75864]
[1739467542101,3.21349638,2636.2,2636.1,0.75858]
[1739467542301,3.97204638,2636.2,2636.1,0.75858]
[1739467542502,3.21349638,2636.2,2636.1,0.75858]
[1739467542805,0.00569638,2636.2,2636.1,0.75858]
[1739467543305,0.76424638,2636.2,2636.1,0.75858]
[1739467543606,0.00569638,2636.2,2636.1,0.75858]
[1739467544400,3.96619,2636.8,2636.7,0.75841]
[1739467544611,3.96618,2636.8,2636.7,4.16787339]
[1739467544803,3.96618,2636.8,2636.7,3.40946339]
[1739467545004,3.96618,2636.8,2636.7,4.16787339]
[1739467545210,3.2078,2636.8,2636.7,4.16787339]
[1739467546207,0.00569638,2637.0,2636.7,3.40946339]
[1739467546411,0.00569638,2637.0,2636.9,0.75541283]
[1739467547113,0.00569638,2637.0,2636.9,1.33321283]
[1739467547312,1.89535,2637.7,2636.9,1.33321283]
[1739467547313,3.2078,2637.7,2636.9,1.33321283]
[1739467547509,3.40946339,2638.5,2636.9,1.33321283]
[1739467547510,3.2078,2638.0,2637.6,4.16761339]
[1739467547713,3.96583,2638.0,2637.9,3.40946339]
[1739467552315,0.75809,2637.8,2637.7,0.00569638]
[1739467553816,3.2078,2638.0,2637.7,0.76379638]
[1739467554011,0.75809,2637.8,2637.7,0.76379638]
[1739467554315,0.75809,2637.8,2637.7,4.17325977]
[1739467554515,0.75809,2637.8,2637.7,3.41515977]
[1739467556837,3.2078,2638.0,2637.7,3.41515977]
[1739467557032,0.75808,2637.9,2637.8,0.75806]
[1739467557229,0.75809,2637.8,2637.7,4.17326977]
[1739467557736,0.75809,2637.8,2637.7,3.41515977]